[Event "Lliga Catalana 2024"]
[Site "Catalonia"]
[Date "2024.02.17"]
[Round "5.5"]
[White "Alonso Moyano, Jonathan"]
[Black "Barseghyan, Harutyun"]
[Result "0-1"]
[ECO "B12"]
[WhiteElo "2331"]
[BlackElo "2442"]
[Annotator "TA"]
[PlyCount "92"]
[EventDate "2024.01.18"]
[EventType "team-tourn"]
[EventCountry "ESP"]
[SourceTitle "playchess.com"]
[Source "ChessBase"]
[SourceQuality "1"]
[TimeControl "5400+30"]

{[%evp 11,92,-10,-16,-29,0,-25,-12,-15,0,-14,0,-29,19,-18,11,-40,-48,-47,-53,-48,-33,-58,0,-31,-23,-16,-17,-8,-18,-15,0,0,0,0,0,0,0,0,0,0,0,0,0,0,0,0,103,18,24,0,49,56,122,72,123,-57,-62,-68,-71,-69,-71,-84,-83,-443,-443,-887,-591,-1752,-1639,-1743,-566,-558,-551,-2166,-1795,-29989,-29990,-29994,-29973,-29968,-29971,-5926,-5926]} 1. e4 {[%emt 0:00:03]} c6 {[%emt 0:00:11]} 2. d4 {[%emt 0:00:12]} d5 {[%emt 0:03:24]} 3. e5 {[%emt 0:00:07]} Bf5 {[%emt 0:00:28]} 4. c4 {[%emt 0:00:11]} e6 {[%emt 0:01:06]} 5. Nc3 {[%emt 0:00:08]} Bb4 {[%emt 0:02:33]} 6. a3 {[%emt 0:06:54] B12: Caro-Kann: Advance Variation.} Bxc3+ {[%emt 0:02:32]} 7. bxc3 {[%emt 0:04:19]} Ne7 {[%emt 0:00:03]} 8. Nf3 {[%emt 0:01:11]} O-O {[%emt 0:00:56]} 9. c5 {[%emt 0:08:21]} b6 $146 {[%emt 0:01:01]} ({Predecessor:} 9... Bg4 10. Bd3 g6 11. h3 Bf5 12. Bh6 Re8 13. O-O Nd7 14. Bg5 Bxd3 15. Qxd3 b6 16. cxb6 Nxb6 {½-½ Moe,C (1399)-Leonhardsen,V (1247) Asker CC-ch Class A 2017 (5)}) 10. cxb6 $1 {[%emt 1:14:04]} axb6 {[%emt 0:00:49]} 11. Be2 {[%emt 0:00:00]} Nd7 {[%emt 0:19:49]} (11... h6 $142) 12. O-O {[%emt 0:00:00]} b5 {[%emt 0:06:37]} 13. a4 {[%emt 0:01:30]} (13. Nh4 $11) 13... Nb6 $15 {[%emt 0:04:56]} 14. Ba3 {[%emt 0:00:00]} Nxa4 {[%emt 0:00:45]} 15. Qc1 {[%emt 0:00:00]} h6 {[%emt 0:03:05]} 16. Ne1 {[%emt 0:00:00]} f6 {[%emt 0:11:36]} (16... Qd7 $15) 17. f4 {[%emt 0:00:00]} fxe5 {[%emt 0:03:25]} 18. fxe5 {[%emt 0:00:00]} Be4 {[%emt 0:02:32]} 19. Rxf8+ {[%emt 0:00:00]} Qxf8 {[%emt 0:00:04]} 20. Nd3 {[%emt 0:03:30]} Qf7 {[%emt 0:11:40]} 21. Bb4 {[%emt 0:00:00]} Rf8 {[%emt 0:08:10]} 22. Qe3 {[%emt 0:00:00]} Qg6 {[%emt 0:03:00]} 23. Qh3 {[%emt 0:00:00]} Bf5 {[%emt 0:04:29]} 24. Qe3 {[%emt 0:00:00]} Rf7 {[%emt 0:05:21]} 25. Nf4 {[%emt 0:00:00]} Qg5 {[%emt 0:00:01]} 26. g3 {[%emt 0:00:00]} Ng6 {[%emt 0:02:15]} 27. Ng2 $1 {[%emt 0:00:00]} Qd8 {[%emt 0:00:13]} 28. Bh5 {[%emt 0:00:00]} Kh7 {[%emt 0:02:34] [#]} (28... Ra7 $11 {keeps the balance.}) 29. Rf1 {[%emt 0:00:00]} (29. Nh4 $1 $16 {[%cal Rh4g6]}) 29... Qe8 {[%emt 0:00:53]} 30. Qf3 {[%emt 0:00:00]} Kg8 {[%emt 0:00:26]} (30... Ra7 $11 {was preferrable.}) 31. Nf4 $14 {[%emt 0:00:00]} Ra7 {[%emt 0:00:34] [#]} (31... Nxf4 $14 32. Bxf7+ Qxf7 33. Qxf4 Qh5) 32. Qe3 {[%emt 0:00:05]} (32. Ra1 $142 $1) 32... Kh7 {[%emt 0:00:21]} ({Black should play} 32... Be4 33. Nd3 (33. Nxg6 Bxg6 34. Rf8+ Qxf8 $15) 33... Kh7) 33. Nxg6 $2 {[%emt 0:02:29]} ({White should try} 33. g4 $16 Be4 34. Nxg6 Bxg6 35. Rf8 Bxh5 36. Rxe8 Bxe8 37. g5) 33... Bxg6 $15 {[%emt 0:00:01]} 34. Rf8 {[%emt 0:00:06]} Bxh5 {[%emt 0:00:03]} 35. Rxe8 {[%emt 0:00:05]} Bxe8 {[%emt 0:00:02]} 36. Qf2 {[%emt 0:01:02]} Bg6 {[%emt 0:00:46]} 37. Qf8 $2 {[%emt 0:00:59][%mdl 8192]} (37. g4 $17) 37... Nb2 $19 {[%emt 0:00:01]} 38. Qd6 {[%emt 0:02:14]} (38. Ba3 $142 Nc4 39. Bb2) 38... Be4 {[%emt 0:00:22]} 39. Kf2 {[%emt 0:01:20]} Ra2 {[%emt 0:00:16]} 40. Qxe6 {[%emt 0:00:28]} Nc4+ {[%emt 0:00:25]} (40... Nd3+ $142 41. Kf1 Rf2+ 42. Kg1 Re2) 41. Ke1 $19 {[%emt 0:00:09]} Ne3 {[%emt 0:00:15]} 42. c4 {[%emt 0:00:56]} Nc2+ {[%emt 0:00:06]} 43. Kd1 {[%emt 0:00:26]} Nxb4 {[%emt 0:00:33]} 44. cxb5 {[%emt 0:00:18]} Nd3 {[%emt 0:01:19]} 45. Qf7 {[%emt 0:00:33]} cxb5 {[%emt 0:01:38]} ({Not} 45... Rxh2 46. e6 $17) 46. e6 {[%emt 0:00:16]} Rf2 {[%emt 0:00:05]} 0-1

[Event "Lliga Catalana 2024"]
[Site "Catalonia"]
[Date "2024.02.17"]
[Round "5.5"]
[White "Sort Sererols, Josep"]
[Black "Boix Moreno, Daniel"]
[Result "0-1"]
[ECO "A08"]
[WhiteElo "2037"]
[BlackElo "2253"]
[Annotator "TA"]
[PlyCount "110"]
[EventDate "2024.01.18"]
[EventType "team-tourn"]
[EventCountry "ESP"]
[SourceTitle "playchess.com"]
[Source "ChessBase"]
[SourceQuality "1"]
[TimeControl "5400+30"]

{[%evp 32,110,78,78,61,0,23,0,57,55,61,62,128,-52,-50,-41,-45,-31,-42,-152,-150,-144,-118,-129,-143,-121,-122,-187,-179,-138,-138,-145,-175,-169,-158,-166,-154,-123,-119,-277,0,-404,170,-62,-62,-235,-235,-201,18,18,16,12,15,20,20,0,0,0,0,0,0,0,0,0,0,0,0,0,0,-1294,-1260,-1252,-1068,-29983,-29984,-29984,-29985,-29984,-29984,-29988,-29989]} 1. e4 {[%emt 0:00:30]} c5 {[%emt 0:01:43]} 2. Nf3 {[%emt 0:01:19]} e6 {[%emt 0:01:44]} 3. d3 {[%emt 0:00:43]} d5 {[%emt 0:00:22]} 4. Qe2 {[%emt 0:00:22]} Ne7 {[%emt 0:04:04]} 5. g3 {[%emt 0:00:46]} g6 {[%emt 0:00:12]} 6. Bg2 {[%emt 0:00:48]} Bg7 {[%emt 0:00:16]} 7. O-O {[%emt 0:01:25]} O-O {[%emt 0:00:52]} 8. e5 {[%emt 0:01:50]} Nbc6 {[%emt 1:25:17]} 9. c3 {[%emt 0:01:47]} b6 {[%emt 0:00:00]} 10. Re1 {[%emt 0:00:54] A08: Königsindisch im Anzug.} Bb7 {[%emt 0:01:00]} 11. Bf4 {[%emt 0:13:50]} Qd7 $146 {[%emt 0:00:00]} ({Predecessor:} 11... h6 12. h4 Kh7 13. Nbd2 a5 14. Nf1 a4 15. N1h2 a3 16. b3 Ra7 17. Qd2 d4 {1-0 Moussard,J (2571)-Jessel,S (2334) Paris Oscaro blitz 2017 (3)}) 12. h4 {[%emt 0:04:23]} h6 {[%emt 0:00:00]} 13. Nbd2 {[%emt 0:00:22]} a5 {[%emt 0:00:00]} 14. Nf1 {[%emt 0:05:51]} d4 {[%emt 0:00:00]} 15. c4 {[%emt 0:00:43]} a4 {[%emt 0:00:00]} 16. N1h2 {[%emt 0:11:45]} Kh7 {[%emt 0:00:00]} 17. Ng4 {[%emt 0:02:11]} Ng8 {[%emt 0:00:00]} 18. Qd2 {[%emt 0:04:52]} (18. Rab1 $14) 18... Qd8 {[%emt 0:04:00]} 19. Qe2 {[%emt 0:06:22]} a3 {[%emt 0:00:00]} (19... Qd7 $1 $11) 20. b3 $14 {[%emt 0:01:06]} Ra7 {[%emt 0:00:00]} 21. Rad1 {[%emt 0:20:12]} Nb4 {[%emt 0:00:00]} (21... Qa8 $14) 22. Bc1 $2 {[%emt 0:11:13]} ({Weiss braucht} 22. Ng5+ $1 $16 hxg5 23. hxg5) 22... Qa8 {[%emt 0:00:00]} (22... f5 {sieht schärfer aus.} 23. exf6 Nxf6 24. Nxf6+ Qxf6 25. Nh2 Bxg2 26. Kxg2 e5) 23. Ngh2 {[%emt 0:01:43]} Bc6 {[%emt 0:00:00]} 24. h5 {[%emt 0:01:31]} g5 {[%emt 0:00:00]} 25. Bxg5 {[%emt 0:02:59]} (25. Rd2 $1 $15) 25... hxg5 $17 {[%emt 0:00:00]} 26. Nxg5+ {[%emt 0:00:03]} Kh8 {[%emt 0:00:00]} 27. Bxc6 {[%emt 0:00:08]} Qxc6 {[%emt 0:00:00]} 28. Ng4 {[%emt 0:00:37]} Nh6 $1 {[%emt 0:00:00]} 29. Nxh6 {[%emt 0:02:49]} (29. f4 $17) 29... Bxh6 $19 {[%emt 0:00:00]} 30. Ne4 {[%emt 0:00:02]} Rg8 {[%emt 0:02:34]} 31. Kh2 {[%emt 0:02:54]} f5 $1 {[%emt 0:00:52]} 32. exf6 {[%emt 0:00:00]} Rh7 {[%emt 0:00:09]} 33. f4 {[%emt 0:00:02]} Qd7 {[%emt 0:01:43]} 34. Rf1 {[%emt 0:00:12]} Qc7 {[%emt 0:01:40]} 35. Rf2 $2 {[%emt 0:00:23] [#]} (35. Rde1 $17) 35... Qf7 $2 {[%emt 0:00:24]} (35... Nxa2 $1 $19 {[%cal Oc7f7] Droht stark ...Qf7!} 36. Qxa2 Bxf4) 36. g4 $2 {[%emt 0:00:08][%mdl 8192]} (36. Kg2 $1 $11 {und Weiss steht sicher.}) 36... Bf8 $4 {[%emt 0:00:26][%mdl 8192] [#]} (36... Nxa2 $1 $19 {und alles wird gut.} 37. Kg3 Nc3 38. Nxc3 dxc3) 37. Ng5 $2 {[%emt 0:00:16]} (37. Kh3 $1 $18) 37... Qxf6 $15 {[%emt 0:00:13]} 38. Nxh7 $2 {[%emt 0:00:04]} ({Der einzige Zug:} 38. Kh3 $1 $15) 38... Qh4+ $19 {[%emt 0:00:11]} 39. Kg1 {[%emt 0:00:06]} Rxg4+ $2 {[%emt 0:00:29]} (39... Kxh7 40. g5 $11) ({Günstiger ist} 39... Qxg4+ $19 40. Qxg4 Rxg4+ 41. Rg2 Rxg2+ (41... Kxh7 $2 42. Rxg4 b5 43. cxb5 $18) 42. Kxg2 Kxh7) 40. Rg2 $11 {[%emt 0:00:05]} Rxg2+ {[%emt 0:00:16]} (40... Kxh7 $2 41. Rxg4 (41. Qxg4 Qxg4 42. Rxg4 Nc2 $18) 41... Qf6 42. Rg6 $18) 41. Kxg2 {[%emt 0:01:00]} Kxh7 {[%emt 0:00:06]} 42. Qxe6 {[%emt 0:00:24]} Qe7 $1 {[%emt 0:00:55]} (42... Nxa2 43. Ra1 (43. Qxb6 $2 Qg4+ 44. Kf2 Qxf4+ 45. Kg2 Qg4+ 46. Kf2 Qxd1 $19) 43... Qxh5 44. Rxa2 $18 (44. Rh1 Qxh1+ 45. Kxh1 Nb4 $18)) (42... Qxh5 $2 43. Rh1 $18) (42... Qxf4 $2 43. Qg6+ Kh8 44. Rf1 Nxd3 45. Qxd3 Qg4+ 46. Qg3 Qe2+ 47. Rf2 $18) 43. Qg6+ {[%emt 0:00:26]} (43. Qxb6 $2 Qe2+ (43... Nxa2 44. Qg6+ Kh8 45. Ra1 $11) 44. Kg3 Qxd1 $19) 43... Kh8 {[%emt 0:00:05]} 44. Rg1 {[%emt 0:01:35]} Qg7 {[%emt 0:01:11]} (44... Nxa2 45. Kf1 (45. Kh3 Qg7 $16) 45... Qg7 46. Qe6 $18) 45. Kf3 {[%emt 0:00:05]} Qxg6 {[%emt 0:00:54]} (45... Nxa2 $6 46. Ra1 Nb4 47. Rxa3 (47. Qxb6 $2 Qe7 $19) 47... Qb7+ 48. Kg3 $16) 46. hxg6 {[%emt 0:00:01]} Nxd3 {[%emt 0:00:12]} (46... Nxa2 $2 {verliert.} 47. f5 (47. Ra1 Nb4 $18) 47... Kg7 48. Ra1 $18) 47. f5 {[%emt 0:00:26]} Kg7 {[%emt 0:00:14]} 48. Ke4 {[%emt 0:00:29]} Nb4 {[%emt 0:02:26]} 49. Rh1 {[%emt 0:00:04]} (49. Ke5 $5 Nd3+ $8 50. Ke4 $11) 49... Kf6 $1 {[%emt 0:00:00]} 50. Rh7 $2 {[%emt 0:00:09][%mdl 8192]} (50. Rh8 $11 Bg7 51. Rd8 Nxa2 52. Kf4) 50... Bg7 $1 $19 {[%emt 0:00:00]} (50... Nxa2 $2 {zu gefräßig.} 51. Rf7+ Kg5 52. Rxf8 $18) 51. Rh2 {[%emt 0:00:17]} d3 {[%emt 0:00:00]} 52. Kf4 {[%emt 0:00:38]} d2 {[%emt 0:00:07]} 53. Rh1 {[%emt 0:00:03]} Nxa2 {[%emt 0:00:11]} 54. Ke3 {[%emt 0:00:04]} Bh6+ {[%emt 0:00:21]} 55. Ke2 {[%emt 0:00:08]} Nc3+ {[%emt 0:00:05]} 0-1

[Event "Lliga Catalana 2024"]
[Site "Catalonia"]
[Date "2024.02.17"]
[Round "5.6"]
[White "Bagheri, Amir"]
[Black "Villa Tornero, Alex"]
[Result "1-0"]
[ECO "D02"]
[WhiteElo "2381"]
[BlackElo "2321"]
[Annotator "RC"]
[PlyCount "65"]
[EventDate "2024.01.18"]
[EventType "team-tourn"]
[EventCountry "ESP"]
[SourceTitle "playchess.com"]
[Source "ChessBase"]
[SourceQuality "1"]
[TimeControl "5400+30"]

1. d4 {[%emt 0:00:30]} Nf6 {[%emt 0:03:52]} 2. Nf3 {[%emt 0:00:19]} e6 {[%emt 0:00:12]} 3. Bf4 {[%emt 0:00:14]} d5 {[%emt 0:00:21]} 4. e3 {[%emt 0:00:08]} Bd6 {[%emt 0:00:07]} 5. Bg3 {[%emt 0:00:29]} O-O {[%emt 0:01:21]} 6. Nbd2 {[%emt 0:00:05]} c5 {[%emt 0:00:09]} 7. c3 {[%emt 0:00:24]} Qc7 {[%emt 1:27:58]} 8. Bd3 {[%emt 0:14:13]} Nbd7 {[%emt 0:00:00]} 9. O-O {[%emt 0:04:45]} e5 {[%emt 0:00:00]} 10. e4 {[%emt 0:07:25]} exd4 {[%emt 0:00:00]} 11. cxd4 {[%emt 0:11:58]} Bxg3 {[%emt 0:00:00]} 12. hxg3 {[%emt 0:00:35]} dxe4 {[%emt 0:00:00]} 13. Bxe4 {[%emt 0:04:01]} cxd4 {[%emt 0:00:00]} 14. Rc1 {[%emt 0:02:57]} Qa5 {[%emt 0:00:00]} 15. Bb1 {[%emt 0:09:43]} Ne5 {[%emt 0:04:00]} 16. Nxe5 {[%emt 0:04:53]} Qxe5 {[%emt 0:00:00]} 17. Nf3 {[%emt 0:00:04]} Qh5 {[%emt 0:00:00]} 18. Qxd4 {[%emt 0:00:32]} Bg4 {[%emt 0:00:00]} 19. Rc5 {[%emt 0:03:17]} Qh6 {[%emt 0:02:00]} 20. Ne5 {[%emt 0:33:58]} Be2 {[%emt 0:00:00]} 21. Re1 {[%emt 0:00:00]} b6 {[%emt 0:00:00]} 22. Rc6 {[%emt 0:00:00]} Rad8 {[%emt 0:01:30]} 23. Rd6 {[%emt 0:00:00]} Rc8 {[%emt 0:00:00]} 24. f4 {[%emt 0:00:00]} Rfe8 {[%emt 0:01:00]} 25. Bf5 {[%emt 0:00:00]} Rc5 {[%emt 0:00:00]} 26. b4 {[%emt 0:00:00]} Rc7 {[%emt 0:00:00]} 27. Ng4 {[%emt 0:00:00]} Qh5 {[%emt 0:00:00]} 28. Rd8 {[%emt 0:00:00]} Rce7 {[%emt 0:00:00]} 29. Nxf6+ {[%emt 0:00:00]} gxf6 {[%emt 0:00:00]} 30. Rxe8+ {[%emt 0:00:00]} Rxe8 {[%emt 0:00:00]} 31. Qxf6 {[%emt 0:00:00]} Bb5 {[%emt 0:00:00]} 32. Rxe8+ {[%emt 0:00:00]} Bxe8 {[%emt 0:00:00]} 33. g4 {[%emt 0:00:00]} 1-0

[Event "Lliga Catalana 2024"]
[Site "Catalonia"]
[Date "2024.02.17"]
[Round "5.6"]
[White "Leiro Giralt, Daniel"]
[Black "Montes Molina, Ivan"]
[Result "1-0"]
[ECO "C01"]
[WhiteElo "2152"]
[BlackElo "2070"]
[Annotator "RC"]
[PlyCount "89"]
[EventDate "2024.01.18"]
[EventType "team-tourn"]
[EventCountry "ESP"]
[SourceTitle "playchess.com"]
[Source "ChessBase"]
[SourceQuality "1"]
[TimeControl "5400+30"]

1. e4 {[%emt 0:00:18]} e6 {[%emt 0:00:04]} 2. d4 {[%emt 0:00:33]} d5 {[%emt 0:00:08]} 3. Bd3 {[%emt 0:00:11]} dxe4 {[%emt 0:00:06]} 4. Bxe4 {[%emt 0:00:06]} Nf6 {[%emt 0:00:04]} 5. Bf3 {[%emt 0:00:06]} c5 {[%emt 0:00:04]} 6. Ne2 {[%emt 0:00:19]} Nc6 {[%emt 0:00:05]} 7. Be3 {[%emt 0:00:09]} cxd4 {[%emt 0:00:07]} 8. Nxd4 {[%emt 0:00:14]} Ne5 {[%emt 0:00:05]} 9. Nc3 {[%emt 0:00:33]} Be7 {[%emt 0:00:38]} 10. Ndb5 {[%emt 1:33:01]} Qa5 {[%emt 0:20:46]} 11. Nd6+ {[%emt 0:00:00]} Bxd6 {[%emt 0:02:14]} 12. Qxd6 {[%emt 0:00:00]} Nc4 {[%emt 0:01:39]} 13. Qd4 {[%emt 0:00:00]} Nxe3 {[%emt 0:03:21]} 14. Qxe3 {[%emt 0:00:00]} O-O {[%emt 0:00:22]} 15. O-O {[%emt 0:00:00]} Bd7 {[%emt 1:08:17]} 16. Rfd1 {[%emt 0:00:00]} Rac8 {[%emt 0:00:00]} 17. Rd4 {[%emt 0:00:00]} Qb6 {[%emt 0:00:00]} 18. Rb1 {[%emt 0:00:00]} Rc7 {[%emt 0:00:00]} 19. a3 {[%emt 0:00:00]} Rfc8 {[%emt 0:00:00]} 20. Rd3 {[%emt 0:00:00]} Qa5 {[%emt 0:00:00]} 21. Rbd1 {[%emt 0:00:00]} a6 {[%emt 0:00:00]} 22. h3 {[%emt 0:00:00]} h6 {[%emt 0:00:00]} 23. R1d2 {[%emt 0:00:00]} Qf5 {[%emt 0:00:00]} 24. Ne4 {[%emt 0:00:00]} Bb5 {[%emt 0:00:00]} 25. Nd6 {[%emt 0:00:00]} Qg6 {[%emt 0:00:00]} 26. Nxc8 {[%emt 0:00:08]} Bxd3 {[%emt 0:00:00]} 27. Qxd3 {[%emt 0:00:36]} Rxc8 {[%emt 0:00:00]} 28. Qxg6 {[%emt 0:00:03]} fxg6 {[%emt 0:00:00]} 29. Bxb7 {[%emt 0:00:21]} Rb8 {[%emt 0:00:00]} 30. Bxa6 {[%emt 0:00:08]} Rxb2 {[%emt 0:00:00]} 31. Bc4 {[%emt 0:00:34]} Kf7 {[%emt 0:00:00]} 32. Bb3 {[%emt 0:00:29]} Ne4 {[%emt 0:00:00]} 33. Rd4 {[%emt 0:02:17]} Nc5 {[%emt 0:00:00]} 34. Rb4 {[%emt 0:00:02]} Na6 {[%emt 0:00:00]} 35. Rb7+ {[%emt 0:00:05]} Kf6 {[%emt 0:00:00]} 36. Rb6 {[%emt 0:01:45]} Nc5 {[%emt 0:00:00]} 37. Rb5 {[%emt 0:00:09]} Ne4 {[%emt 0:00:00]} 38. f3 {[%emt 0:00:23]} Rb1+ {[%emt 0:00:00]} 39. Kh2 {[%emt 0:00:01]} Nd2 {[%emt 0:00:00]} 40. Kg3 {[%emt 0:00:46]} g5 {[%emt 0:00:00]} 41. Kf2 {[%emt 0:00:59]} Rb2 {[%emt 0:00:00]} 42. Ke3 {[%emt 0:00:54]} Nb1 {[%emt 0:00:00]} 43. Rb6 {[%emt 0:00:31]} Nxa3 {[%emt 0:00:00]} 44. Rxe6+ {[%emt 0:00:04]} Kf5 {[%emt 0:00:00]} 45. g4# {[%emt 0:07:15]} 1-0

[Event "Lliga Catalana 2024"]
[Site "Catalonia"]
[Date "2024.02.17"]
[Round "5.7"]
[White "Martinez Ramirez, Erik"]
[Black "Juan Bartroli, Marc"]
[Result "1-0"]
[ECO "B10"]
[WhiteElo "2241"]
[BlackElo "2140"]
[Annotator "TA"]
[PlyCount "89"]
[EventDate "2024.01.18"]
[EventType "team-tourn"]
[EventCountry "ESP"]
[SourceTitle "playchess.com"]
[Source "ChessBase"]
[SourceQuality "1"]
[TimeControl "5400+30"]

{[%evp 9,89,0,16,38,18,15,58,13,25,8,76,49,69,54,84,85,184,185,177,170,174,173,176,158,145,143,140,136,134,150,147,143,162,138,129,129,128,90,113,108,113,113,110,104,117,108,114,118,149,143,127,153,304,317,319,300,317,319,343,318,391,391,387,374,447,449,602,595,665,660,872,839,1086,1075,1744,1042,2446,2632,4825,1223,5651,5482]} 1. e4 {[%emt 0:00:03]} c6 {[%emt 0:00:05]} 2. Nf3 {[%emt 0:01:27]} d5 {[%emt 0:00:10]} 3. d3 {[%emt 0:00:08]} dxe4 {[%emt 0:01:42]} 4. dxe4 {[%emt 0:00:12]} Qxd1+ {[%emt 0:00:18]} 5. Kxd1 {[%emt 0:00:05]} Bg4 {[%emt 0:00:12]} 6. Be2 {[%emt 0:00:34][%cal Bf1e2,Be2f3,Bf3g4][%mdl 32]} Bxf3 {[%emt 0:04:09]} 7. Bxf3 {[%emt 0:00:51]} e5 {[%emt 0:00:20]} 8. Be3 {[%emt 0:02:40] White is slightly better.} Nd7 {[%emt 0:04:36][%cal Bb8d7,Bd7f8,Bf8e6][%mdl 32]} 9. Nd2 {[%emt 0:00:15]} Ne7 {[%emt 0:14:11]} (9... g6 $11 {remains equal.}) 10. Nc4 {[%emt 0:04:47]} Nc8 {[%emt 0:05:08] Against Nd6+} 11. Bg4 {[%emt 0:08:05]} f6 {[%emt 0:04:27] Black is weak on the light squares} 12. Ke2 {[%emt 0:00:43] White is much more active. The black rooks are passive.} Be7 {[%emt 0:16:59]} (12... Nc5 $16) 13. Rhd1 $18 {[%emt 0:03:59]} Nf8 {[%emt 0:11:50]} 14. Bxc8 {[%emt 0:03:09]} Rxc8 {[%emt 0:00:07]} 15. Bxa7 {[%emt 0:00:09]} Ne6 {[%emt 0:01:25]} 16. Be3 {[%emt 0:10:47]} c5 {[%emt 0:08:00]} 17. c3 {[%emt 0:01:01] Inhibits Nd4+.} b5 {[%emt 0:00:53]} 18. Nb6 {[%emt 0:04:13]} Rb8 {[%emt 0:00:48]} 19. Nd5 {[%emt 0:00:27]} Kf7 {[%emt 0:00:15]} 20. Rd2 {[%emt 0:01:15]} g6 {[%emt 0:01:30]} 21. Rad1 {[%emt 0:03:34]} Rb7 {[%emt 0:02:15]} 22. a3 {[%emt 0:02:36]} Ra8 {[%emt 0:02:24]} 23. f3 {[%emt 0:01:00]} Bf8 {[%emt 0:04:18]} 24. g3 {[%emt 0:00:36]} Ra4 {[%emt 0:00:39]} 25. h4 {[%emt 0:03:35]} h5 {[%emt 0:02:42]} 26. Kd3 {[%emt 0:06:41][%cal Be2d3,Bd3c2,Bc2b3][%mdl 32]} f5 {[%emt 0:04:41]} 27. exf5 {[%emt 0:03:29]} gxf5 {[%emt 0:00:01]} 28. Kc2 {[%emt 0:00:24]} f4 {[%emt 0:04:41]} 29. gxf4 {[%emt 0:03:30]} exf4 {[%emt 0:00:03]} 30. Bf2 {[%emt 0:00:45]} b4 $2 {[%emt 0:05:33] [#]} (30... Bg7 $16 {was necessary.} 31. Re1 Ra6) 31. cxb4 {[%emt 0:05:41]} cxb4 {[%emt 0:00:02]} 32. Kb3 {[%emt 0:00:13]} Ra5 {[%emt 0:01:06]} 33. Nxb4 {[%emt 0:00:27]} (33. axb4 Rab5 34. Kc2 Nc7 $11) 33... Rab5 {[%emt 0:00:57]} 34. Rd7+ {[%emt 0:00:19]} Ke8 {[%emt 0:00:25]} 35. Rxb7 {[%emt 0:00:49]} Rxb7 {[%emt 0:00:01]} 36. Rd5 {[%emt 0:00:12]} Rg7 {[%emt 0:00:58]} 37. Nd3 {[%emt 0:02:14] White is clearly winning.} ({Don't take} 37. Rxh5 Rg3 $18) 37... Rg2 {[%emt 0:00:30]} 38. Rxh5 {[%emt 0:00:21]} Rh2 {[%emt 0:00:15]} 39. a4 {[%emt 0:00:27][%cal Ba3a4,Ba4a5,Ba5a6,Ba6a7][%mdl 32]} Rh3 {[%emt 0:00:31]} 40. a5 {[%emt 0:03:40]} Rxf3 {[%emt 0:00:44]} 41. Kc4 {[%emt 0:00:01] [#] a6 is the strong threat.} Rh3 {[%emt 0:00:38]} 42. a6 {[%emt 0:00:11] Threatens to win with a7.} Nc7 {[%emt 0:00:26]} 43. a7 {[%emt 0:00:22]} Rh1 {[%emt 0:00:17]} 44. Ra5 {[%emt 0:00:58]} (44. Rh7 $142 Na8 45. Rb7 (45. Nxf4 Rc1+ 46. Kd5 Ra1 $18)) 44... Na8 {[%emt 0:00:06]} 45. Rb5 {[%emt 0:00:13] Weighted Error Value: White=0.06 (flawless) /Black=0.35.  Mistake:       	---       	Black=3      Inaccurate:     	White=2     	Black=4      OK:         	White=19    	Black=6      Best:        	White=2     	---} 1-0

[Event "Lliga Catalana 2024"]
[Site "Catalonia"]
[Date "2024.02.17"]
[Round "5.7"]
[White "Calvo Bures, Marc"]
[Black "Moreno Martin-Viveros, Alvaro"]
[Result "0-1"]
[ECO "C18"]
[WhiteElo "2042"]
[BlackElo "2159"]
[Annotator "RC"]
[PlyCount "94"]
[EventDate "2024.01.18"]
[EventType "team-tourn"]
[EventCountry "ESP"]
[SourceTitle "playchess.com"]
[Source "ChessBase"]
[SourceQuality "1"]
[TimeControl "5400+30"]

1. e4 {[%emt 0:00:06]} e6 {[%emt 0:00:12]} 2. d4 {[%emt 0:00:15]} d5 {[%emt 0:00:15]} 3. Nc3 {[%emt 0:00:19]} Bb4 {[%emt 0:00:14]} 4. e5 {[%emt 0:00:17]} c5 {[%emt 0:00:13]} 5. a3 {[%emt 0:00:06]} Bxc3+ {[%emt 0:00:11]} 6. bxc3 {[%emt 0:00:05]} Nc6 {[%emt 0:00:25]} 7. Nf3 {[%emt 0:01:36]} Qa5 {[%emt 0:01:22]} 8. Qd2 {[%emt 0:01:14]} b6 {[%emt 0:05:40]} 9. a4 {[%emt 0:12:06]} Ba6 {[%emt 0:00:15]} 10. Bxa6 {[%emt 0:00:11]} Qxa6 {[%emt 0:00:06]} 11. Qe2 {[%emt 0:00:09]} Qa5 {[%emt 0:08:19]} 12. Bd2 {[%emt 0:00:37]} c4 {[%emt 0:01:37]} 13. O-O {[%emt 0:00:22]} Nge7 {[%emt 0:02:05]} 14. Rfb1 {[%emt 0:12:42]} O-O {[%emt 0:03:31]} 15. Nh4 {[%emt 0:03:07]} Ng6 {[%emt 0:04:51]} 16. Nxg6 {[%emt 0:06:05]} fxg6 {[%emt 0:01:40]} 17. f4 {[%emt 0:02:30]} Qa6 {[%emt 0:01:56]} 18. h4 {[%emt 0:07:50]} Qc8 {[%emt 0:02:47]} 19. g3 {[%emt 0:01:28]} Qd7 {[%emt 0:01:19]} 20. Kg2 {[%emt 0:03:11]} Rab8 {[%emt 0:03:00]} 21. Bc1 {[%emt 0:05:19]} Qf7 {[%emt 0:10:20]} 22. Ba3 {[%emt 0:01:27]} Rfd8 {[%emt 0:01:37]} 23. Bd6 {[%emt 0:05:39]} Rb7 {[%emt 0:00:05]} 24. Qg4 {[%emt 0:01:22]} Rdd7 {[%emt 0:02:45]} 25. Kf2 {[%emt 0:03:27]} h5 {[%emt 0:14:17]} 26. Qh3 {[%emt 0:01:46]} Nd8 {[%emt 0:07:04]} 27. Ke3 {[%emt 0:01:18]} Qe8 {[%emt 0:01:42]} 28. Ba3 {[%emt 0:11:15]} Nf7 {[%emt 0:00:15]} 29. Kd2 {[%emt 0:00:22]} Nh6 {[%emt 0:00:10]} 30. Rb4 {[%emt 0:01:55]} Ng4 {[%emt 0:00:45]} 31. Qg2 {[%emt 0:01:02]} Rb8 {[%emt 0:04:42]} 32. Rab1 {[%emt 0:03:49]} Rdb7 {[%emt 0:00:36]} 33. Qf1 {[%emt 0:03:53]} b5 {[%emt 0:01:07]} 34. R1b2 {[%emt 0:00:40]} a5 {[%emt 0:00:23]} 35. Rxb5 {[%emt 0:00:05]} Rxb5 {[%emt 0:00:04]} 36. axb5 {[%emt 0:00:40]} Rxb5 {[%emt 0:00:05]} 37. Rxb5 {[%emt 0:02:10]} Qxb5 {[%emt 0:00:06]} 38. Ke2 {[%emt 0:00:47]} Qa4 {[%emt 0:00:09]} 39. Qc1 {[%emt 0:00:09]} Qe8 {[%emt 0:00:11]} 40. Qh1 {[%emt 0:03:58]} Qf7 {[%emt 0:00:12]} 41. Qf3 {[%emt 0:00:28]} Qd7 {[%emt 0:00:13]} 42. Qh1 {[%emt 0:00:10]} Qf7 {[%emt 0:00:36]} 43. Qf3 {[%emt 0:00:05]} Qf5 {[%emt 0:00:20]} 44. Kd2 {[%emt 0:00:09]} Nh6 {[%emt 0:00:07]} 45. Bc5 {[%emt 0:02:13]} Qh3 {[%emt 0:00:05]} 46. Kc1 {[%emt 0:02:23]} Nf5 {[%emt 0:00:03]} 47. Kb2 {[%emt 0:00:22]} Nxh4 {[%emt 0:00:12]} 0-1